Workbook

Sheet Journal
B1: =Firmenname -> Carosserie Bühler | F1: =Buchungsperiode -> 01.04.2022-31.03.2023 | J1: Mit Rechtsklick Menü offnen
A2: ="Erfolgskonto " & BuchungsJahr -> Erfolgskonto 2022 | F2: =TODAY() -> 2022-09-19 | H2: 20220038 | J2: Zahlkonto
A3: Analyse | B3: Buchungssatz | D3: =SUM(J3:Q3) -> 91854.74998 | E3: 11 | F3: =CONCATENATE("Buchführung : ",Buchführung) -> Buchführung : Alfred Bühler | H3: Konto Saldi > | I3: Aus- | J3: 6448.5 | K3: 1203.200001 | L3: 81752.04998 | M3: 501 | N3: 450 | O3: 500 | P3: 500 | Q3: 500
A4: AktivKonto | B4: Soll | C4: Haben | D4: Betrag | E4: Datum | F4: Votgang | G4: BuTyp | H4: BelegNr | I4: Ztyp | J4: Raiffeisen Fr | K4: Kasse B | L4: UBS Fr | M4: Post Fr | N4: DB € | O4: Barclays $ | P4: WF £ | Q4: ICBC ¥ | T4: Notizen
A5: Kontoeröffnung | B5: Übertrag | C5: Übertrag | D5: 0 | E5: 01.04.2022 | F5: Abschluss Vorjahr. | G5: XX | H5: 20220001 | I5: E+ | J5: 658.5 | K5: 1070 | L5: 87613.3 | M5: 500 | N5: 450 | O5: 500 | P5: 500 | Q5: 500
A6: Immobilien E* | B6: Debitor | C6: Raiffeisen Fr | D6: 650 | E6: 18.09.2022 | F6: Lagerhalle *78 | G6: IE | H6: 20220017 | I6: + | J6: 650
A7: Immobilien A* | B7: Raiffeisen Fr | C7: Barzahlung | D7: 100 | E7: 18.09.2022 | F7: Lagerhalle *78 | G7: IA | H7: 20220018 | I7: - | J7: -100 | T7: Erstatz Beleuchtung
A8: Löhne* | B8: UBS Fr | C8: Kreditor | D8: 4100 | E8: 19.09.2022 | F8: Hauser Hanna *101 | G8: Ma | H8: 20220022 | I8: - | L8: -4100
A9: Sozialabgaben* | B9: UBS Fr | C9: Kreditor | D9: 492 | E9: 19.09.2022 | F9: Hauser Hanna *101 | G9: Ma | H9: 20220024 | I9: - | L9: -492
A10: Verbrauchsmaterial | B10: Kasse B | C10: Barzahlung | D10: 36.79999924 | E10: 19.09.2022 | F10: Wareneinkauf | G10: OU | H10: 20220025 | I10: - | K10: -36.79999924 | T10: Einkaruszentrum Thun
A11: Betrieb allg. | B11: UBS Fr | C11: Kreditor | D11: 46.34999847 | E11: 19.09.2022 | F11: Spesen | G11: OU | H11: 20220026 | I11: - | L11: -46.34999847
A12: Konto zu Konto | B12: UBS Fr | C12: Raiffeisen Fr | D12: 2000 | E12: 19.09.2022 | F12: Bank zu Bank | G12: TR | H12: 20220027 | I12: / | J12: 2000 | L12: -2000
A13: Kunden* | B13: Debitor | C13: Raiffeisen Fr | D13: 3240 | E13: 19.09.2022 | F13: Muster Felix *501 | G13: Ku | H13: 20220028 | I13: + | J13: 3240
A14: Dienste / Beratung | B14: Bareinnahme | C14: Kasse B | D14: 170 | E14: 19.09.2022 | F14: Beratung | G14: EI | H14: 20220033 | I14: + | K14: 170 | T14: Offerte Huber
A15: Kunden* | B15: Debitor | C15: UBS Fr | D15: 777.0999756 | E15: 19.09.2022 | F15: Muster Felix *501 | G15: Ku | H15: 20220036 | I15: + | L15: 777.0999756
A16: Kunden* | B16: Debitor | C16: Post Fr | D16: 313.2000122 | E16: 19.09.2022 | F16: Last James *500 | G16: Ku | H16: 20220037 | I16: + | M16: 313.2000122

Sheet Budget
B1: ="Budget " & Firmenname -> Budget Carosserie Bühler | G1: Mit Rechtsklick Menü offnen
A2: =Buchungsperiode -> 01.04.2022-31.03.2023 | C2: Buchführung: | D2: =Buchführung -> Alfred Bühler
A3: Buchungsjahr | B3: =BuchungsJahr -> 2022 | C3: aufdatiert am: | D3: 19.09.2022 11:08:40
A4: Erfolgskonto | B4: Abschluss | D4: ="laufende Budgetperiode " -> laufende Budgetperiode
A5: Budgetpositionen | B5: =BuchungsJahr-2 -> 2020 | C5: =BuchungsJahr-1 -> 2021 | D5: genehmigt | E5: Ist | F5: Restbudget
A6: Einnahmen - Ausgaben | B6: =B7-B22 -> 0 | C6: =C7-C22 -> 0 | D6: =D7-D22 -> 41300 | E6: =E7-E22 -> -54101.14844 | F6: =F7-F22 -> 99993.14844
A7: Total Einnahmen | B7: 0 | C7: 0 | D7: 213500 | E7: 3890 | F7: 209610
A8: Subtotal Betrieb E | B8: =SUM(B9:B12) -> 0 | C8: =SUM(C9:C12) -> 0 | D8: =SUM(D9:D12) -> 213500 | E8: =SUM(E9:E12) -> 3890 | F8: =SUM(F9:F12) -> 209610
A9: Kunden* | B9: 0 | C9: 0 | D9: 150500 | E9: 3240 | F9: 147260
A10: Dienste / Beratung | B10: 0 | C10: 0 | D10: 14000 | E10: 0 | F10: 14000
A11: Immobilien E* | B11: 0 | C11: 0 | D11: 4000 | E11: 650 | F11: 3350
A12: Warenverkauf* | B12: 0 | C12: 0 | D12: 45000 | E12: 0 | F12: 45000
A13: Subtotal Lehrlinge | B13: =SUM(B14:B15) -> 0 | C13: =SUM(C14:C15) -> 0 | D13: =SUM(D14:D15) -> 0 | E13: =SUM(E14:E15) -> 0 | F13: =SUM(F14:F15) -> 0
A14: Zuschüsse | B14: 0 | C14: 0 | D14: 0 | E14: 0 | F14: 0
A15: Militärersatz | B15: 0 | C15: 0 | D15: 0 | E15: 0 | F15: 0
A16: Werbung E | B16: =SUM(B17:B18) -> 0 | C16: =SUM(C17:C18) -> 0 | D16: =SUM(D17:D18) -> 0 | E16: =SUM(E17:E18) -> 0 | F16: =SUM(F17:F18) -> 0
A17: Sponsoreinnahmen | B17: 0 | C17: 0 | D17: 0 | E17: 0 | F17: 0
A18: Drucksachen E | B18: 0 | C18: 0 | D18: 0 | E18: 0 | F18: 0
A19: Vergütungen | B19: =SUM(B20:B21) -> 0 | C19: =SUM(C20:C21) -> 0 | D19: =SUM(D20:D21) -> 0 | E19: =SUM(E20:E21) -> 0 | F19: =SUM(F20:F21) -> 0
A20: Bankzinsen | B20: 0 | C20: 0 | D20: 0 | E20: 0 | F20: 0
A21: Rückvergütungen | B21: 0 | C21: 0 | D21: 0 | E21: 0 | F21: 0
A22: Total Ausgaben | B22: 0 | C22: 0 | D22: 172200 | E22: 57991.14844 | F22: 109616.8516
A23: Subtotal Betrieb A | B23: =SUM(B24:B29) -> 0 | C23: =SUM(C24:C29) -> 0 | D23: =SUM(D24:D29) -> 82400 | E23: =SUM(E24:E29) -> 183.1499977 | F23: =SUM(F24:F29) -> 82216.85
A24: Immobilien A* | B24: 0 | C24: 0 | D24: 46700 | E24: 100 | F24: 46600
A25: Mobilien* | B25: 0 | C25: 0 | D25: 24500 | E25: 0 | F25: 24500
A26: Mietausgaben | B26: 0 | C26: 0 | D26: 8600 | E26: 0 | F26: 8600
A27: Betrieb allg. | B27: 0 | C27: 0 | D27: 2000 | E27: 46.34999847 | F27: 1953.650002
A28: Verbrauchsmaterial | B28: 0 | C28: 0 | D28: 300 | E28: 36.79999924 | F28: 263.2000008
A29: Wareneinkauf* | B29: 0 | C29: 0 | D29: 300 | E29: 0 | F29: 300
A30: Subtotal Lehrlinge | B30: =SUM(B31:B33) -> 0 | C30: =SUM(C31:C33) -> 0 | D30: =SUM(D31:D33) -> 9900 | E30: =SUM(E31:E33) -> 0 | F30: =SUM(F31:F33) -> 9900
A31: Schule / Kurse | B31: 0 | C31: 0 | D31: 6400 | E31: 0 | F31: 6400
A32: Instruktionsaufwand | B32: 0 | C32: 0 | D32: 3500 | E32: 0 | F32: 3500
A33: Lehrlinge übriges | B33: 0 | C33: 0 | D33: 0 | E33: 0 | F33: 0
A34: Subtotal Werbung A | B34: =SUM(B35:B37) -> 0 | C34: =SUM(C35:C37) -> 0 | D34: =SUM(D35:D37) -> 4000 | E34: =SUM(E35:E37) -> 0 | F34: =SUM(F35:F37) -> 4000
A35: Zeitungsinserate | B35: 0 | C35: 0 | D35: 800 | E35: 0 | F35: 800
A36: Drucksachen A | B36: 0 | C36: 0 | D36: 1200 | E36: 0 | F36: 1200
A37: Plakatwerbung | B37: 0 | C37: 0 | D37: 2000 | E37: 0 | F37: 2000
A38: Personalkosten | B38: =SUM(B39:B40) -> 0 | C38: =SUM(C39:C40) -> 0 | D38: =SUM(D39:D40) -> 62400 | E38: =SUM(F39:F40) -> 57808 | F38: 0
A39: Löhne* | B39: 0 | C39: 0 | D39: 55200 | E39: 4100 | F39: 51100
A40: Sozialabgaben* | B40: 0 | C40: 0 | D40: 7200 | E40: 492 | F40: 6708
A41: Steuern, Versicherung | B41: =SUM(B42:B43) -> 0 | C41: =SUM(C42:C43) -> 0 | D41: =SUM(D42:D43) -> 13500 | E41: =SUM(E42:E43) -> 0 | F41: =SUM(F42:F43) -> 13500
A42: Steuern | B42: 0 | C42: 0 | D42: 9200 | E42: 0 | F42: 9200
A43: Versicheungen | B43: 0 | C43: 0 | D43: 4300 | E43: 0 | F43: 4300

Sheet Bilanz
B1: =CONCATENATE(Firmenname, " / ", Buchungsperiode) -> Carosserie Bühler / 01.04.2022-31.03.2023 | J1: Mit Rechtsklick Menü öffnen
A2: 19.09.2022 11:08:49 | B2: ="Bilanz " & BuchungsJahr -> Bilanz 2022 | G2: ="Erfolgsrechnung " & BuchungsJahr -> Erfolgsrechnung 2022
A3: Bilanzsumme in Fr. | B3: =B4+B18 -> 451110.7 | D3: Bilanzsumme in Fr. | E3: =E5+E10 -> 272063.8 | G3: Gewinn | H3: =IF(K4>H4,K4-H4,0) -> 0 | J3: Verlust | K3: =IF(K4<H4,H4-K4,0) -> 54101.14844
A4: Aktive | B4: =B5+B18 -> 272063.8 | D4: Passive | E4: =E5+E10 -> 272063.8 | G4: =Budget!A22 -> Total Ausgaben | H4: =Budget!E22 -> 57991.14844 | J4: =Budget!A7 -> Total Einnahmen | K4: =Budget!E7 -> 3890
A5: Umlaufvermögen | B5: =SUM(B6:B17) -> 93016.89995 | D5: Fremdkapital | E5: =SUM(E6:E9) -> 3400 | G5: =Budget!A23 -> Subtotal Betrieb A | H5: =Budget!E23 -> 183.1499977 | J5: =Budget!A8 -> Subtotal Betrieb E | K5: =Budget!E8 -> 3890
A6: =JourKt1 -> Raiffeisen Fr | B6: =JourK1 -> 6448.5 | D6: offene Kreditoren | E6: =oKredi -> 0 | G6: =Budget!A24 -> Immobilien A* | H6: =Budget!E24 -> 100 | J6: =Budget!A9 -> Kunden* | K6: =Budget!E9 -> 3240
A7: =JourKt2 -> Kasse B | B7: =JourK2 -> 1203.200001 | D7: Rückstellungen | E7: 0 | G7: =Budget!A25 -> Mobilien* | H7: =Budget!E25 -> 0 | J7: =Budget!A10 -> Dienste / Beratung | K7: =Budget!E10 -> 0
A8: =JourKt3 -> UBS Fr | B8: =JourK3 -> 81752.04998 | D8: übriges Fremdkapital | E8: 3400 | G8: =Budget!A26 -> Mietausgaben | H8: =Budget!E26 -> 0 | J8: =Budget!A11 -> Immobilien E* | K8: =Budget!E11 -> 650
A9: =JourKt4 -> Post Fr | B9: =JourK4 -> 501 | D9: Rechnungsabgrenzung | E9: 0 | G9: =Budget!A27 -> Betrieb allg. | H9: =Budget!E27 -> 46.34999847 | J9: =Budget!A12 -> Warenverkauf* | K9: =Budget!E12 -> 0
A10: =JourKt5 -> DB € | B10: =JourK5 -> 450 | D10: Eigenkapital | E10: =SUM(E11:E13) -> 268663.8 | G10: =Budget!A28 -> Verbrauchsmaterial | H10: =Budget!E28 -> 36.79999924 | J10: =Budget!A13 -> Subtotal Lehrlinge | K10: =Budget!E13 -> 0
A11: =JourKt6 -> Barclays $ | B11: =JourK6 -> 500 | D11: Reinvermögen | E11: =B4-E13-E12-E5 -> 322764.9484 | G11: =Budget!A29 -> Wareneinkauf* | H11: =Budget!E29 -> 0 | J11: =Budget!A14 -> Zuschüsse | K11: =Budget!E14 -> 0
A12: =JourKt7 -> WF £ | B12: =JourK7 -> 500 | D12: Rücklagen | E12: 0 | G12: =Budget!A30 -> Subtotal Lehrlinge | H12: =Budget!E30 -> 0 | J12: =Budget!A15 -> Militärersatz | K12: =Budget!E15 -> 0
A13: =JourKt8 -> ICBC ¥ | B13: =JourK8 -> 500 | D13: Erfolg (Gewinn oder Verlust) | E13: =IF(H3>K3,H3,K3*-1) -> -54101.14844 | G13: =Budget!A31 -> Schule / Kurse | H13: =Budget!E31 -> 0 | J13: =Budget!A16 -> Werbung E | K13: =Budget!E16 -> 0
A14: offene Debitoren | B14: =oDebi -> 0 | G14: =Budget!A32 -> Instruktionsaufwand | H14: =Budget!E32 -> 0 | J14: =Budget!A17 -> Sponsoreinnahmen | K14: =Budget!E17 -> 0
A15: übrige Vorderungen | B15: 0 | D15: die gelb markierten Felder müssen manuell ausgefüllt werden | G15: =Budget!A33 -> Lehrlinge übriges | H15: =Budget!E33 -> 0 | J15: =Budget!A18 -> Drucksachen E | K15: =Budget!E18 -> 0
A16: Warenlager | B16: =Waren!G2 -> 1162.149975 | G16: =Budget!A34 -> Subtotal Werbung A | H16: =Budget!E34 -> 0 | J16: =Budget!A19 -> Vergütungen | K16: =Budget!E19 -> 0
A17: Rechnungsabgrenzung | B17: 0 | G17: =Budget!A35 -> Zeitungsinserate | H17: =Budget!E35 -> 0 | J17: =Budget!A20 -> Bankzinsen | K17: =Budget!E20 -> 0
A18: Anlagevermögen | B18: =SUM(B19:B22) -> 179046.9 | G18: =Budget!A36 -> Drucksachen A | H18: =Budget!E36 -> 0 | J18: =Budget!A21 -> Rückvergütungen | K18: =Budget!E21 -> 0
A19: Immobilien | B19: =Immobilien -> 134231.3 | D19: Angaben für die Steuererklärung | G19: =Budget!A37 -> Plakatwerbung | H19: =Budget!E37 -> 0
A20: Mobilien | B20: =Mobilien -> 42847.6 | D20: Verwaltungskosten | E20: =H5+H11+H14 -> 183.1499977 | G20: =Budget!A38 -> Personalkosten | H20: =Budget!E38 -> 57808
A21: Maschinen / Werkzeug | B21: =Maschinen!Maschinen -> 1968 | G21: =Budget!A39 -> Löhne* | H21: =Budget!E39 -> 4100
A22: sonstige Vermögen | B22: 0 | D22: Mitgliederbeiträge | E22: =K6+K7 -> 3240 | G22: =Budget!A40 -> Sozialabgaben* | H22: =Budget!E40 -> 492
D23: Reingewinn | E23: =H3-K8-K9-K17 -> -650 | G23: =Budget!A41 -> Steuern, Versicherung | H23: =Budget!E41 -> 0
G24: =Budget!A42 -> Steuern | H24: =Budget!E42 -> 0
A25: Die gewählten Revisoren bestätigen die Richtigkeit der Buchhaltung | G25: =Budget!A43 -> Versicheungen | H25: =Budget!E43 -> 0
A26: =CONCATENATE("Sie visieren die Buchführung von ",Buchführung) -> Sie visieren die Buchführung von Alfred Bühler
A27: Name | B27: Datum | D27: Unterschrift
A28: Revisor(in) 1:
A29: =Revisor1 -> Arnoldo
A30: Revisor(in) 2:
A31: =Revisor2 -> Bettina
A32: Revisor(in) 3:
A33: =Revisor3 -> Mani
A34: Revisor(in) 4:
A35: =Revisor4 -> Heidi

Sheet Offen
B1: O-Buch | C1: Mit Rechtsklick Menü offnen | J1: Zahlkonto
A2: offene Kreditoren | B2: 0 | C2: 0 | D2: offene Debitoren | J2: 10 | K2: 11 | L2: 12 | M2: 13 | N2: 14 | O2: 15 | P2: 16 | Q2: 17
A3: Budgetposition | B3: Soll (von) | C3: (an) Haben | D3: Betrag | E3: Datum | F3: Vorgang | G3: Typ | H3: BelegNr | I3: PM | J3: =JourKt1 -> Raiffeisen Fr | K3: =JourKt2 -> Kasse B | L3: =JourKt3 -> UBS Fr | M3: =JourKt4 -> Post Fr | N3: =JourKt5 -> DB € | O3: =JourKt6 -> Barclays $ | P3: =JourKt7 -> WF £ | Q3: =JourKt8 -> ICBC ¥

Sheet Immobilien
B1: Immobilien | F1: Mit Rechtsklick Menü offnen | L1: Total: | M1: 134231.3
A2: Bezeichnung | B2: Register | C2: Strasse | D2: Plz | E2: Ort | F2: Kanton | G2: Land | H2: Kaufdatum | I2: Kaufwert | J2: Nutzungsdauer | K2: akt. Wert | L2: Wertberichtigung | M2: Buchwert | N2: Vorgangstext | O2: Eigenmietwert | Q2: Unterhalt | R2: Miete | T2: Notiz
A3: Lagerhalle | B3: 78 | C3: camino panorama 76 | D3: 6622 | E3: Ronco sopra Ascona | F3: Ticino\Tessin | G3: Schweiz | H3: 12.09.2011 | I3: 1450430 | J3: 45 | K3: 939878.60 | L3: 12000.00 | M3: 951878.6 | N3: Lagerhalle *78 | O3: 1100000 | Q3: 100 | R3: 650
A4: Hauptsitz Fa Well_Fitclub | B4: 13400 | C4: Hertigweg 21 | D4: 3800 | E4: Matten b. Interlaken | F4: Bern\Berne | G4: Schweiz | H4: 20.5.2010 | I4: 245800 | J4: 36 | K4: 133551.30 | L4: 680.00 | M4: 134231.3 | N4: Hauptsitz Fa Well_Fitclub *13400 | O4: 100000

Sheet Mobilien
B1: Mobilien | I1: Mit Rechtsklick Menü offnen
A2: Referenz | L2: Total : | M2: 42847.6 | O2: Referenz
A3: Bezeichnung | B3: Lieferant | C3: Strasse | D3: Plz | E3: Ort | F3: Kanton | G3: Land | H3: Kaufdatum | I3: Kaufpreis | J3: Abschreiben | K3: akt. Wert | L3: Wertberichtigung | M3: Buchwert | N3: Standort | O3: Artikelnummer | P3: Vorgangstext | Q3: Unterhalt | R3: Miete | T3: Notiz
A4: Arbeitstische | B4: Möbel Elmer | C4: Werkstrasse 46 | D4: 8767 | E4: Elm | F4: Glarus | G4: Schweiz | H4: 1.1.2019 | I4: 350 | J4: 5 | K4: 00.00 | L4: 0 | M4: 0 | N4: Haubtsitz | O4: 435.782 | P4: Arbeitstische *435.782 | T4: Typ Wetro 67 Mit Klappbeiten zusammenlegbar
A5: Fitnessgerät | B5: Golden Sport | C5: On Hing Lee | D5: 2345 | E5: HonKong | F5: Central Honkong | G5: China | H5: 12.09.2011 | I5: 450 | J5: 45 | K5: 291.60 | L5: 502.50 | M5: 794.1 | N5: Hauptsitz | O5: FitG 67S | P5: Fitnessgerät *FitG 67S
A6: Geschäftsauto BE 345 201 | B6: Garage Wenger | C6: Wychelstrasse 32 | D6: 3800 | E6: Matten b. Interlaken | F6: Bern\Berne | G6: Schweiz | H6: 1.1.2021 | I6: 45000 | J6: 16 | K6: 38250.00 | L6: 00.00 | M6: 38250 | N6: Geschäft | O6: BE 345 201 | P6: Geschäftsauto BE 345 201 *BE 345 201
A7: Matte | B7: Medikon ag | C7: Zürich | D7: 8032 | E7: Zürich * | F7: Zürich | G7: Schweiz | H7: 03.04.2011 | I7: 34 | J7: 18 | K7: 02.95 | L7: -00.44 | M7: 2.51 | N7: Hauptsitz | O7: 457.898 | P7: Matte *457.898 | T7: In den Farben grün und rot erhältlich.

Sheet Maschinen
B1: Maschinen & Werkzeuge | I1: Mit Rechtsklick Menü offnen
A2: Referenz | J2: 10 | L2: Total : | M2: 1968 | O2: Referenz
A3: Bezeichnung | B3: Lieferant | C3: Strasse | D3: Plz | E3: Ort | F3: Kanton | G3: Land | H3: Kaufdatum | I3: Kaufpreis | J3: Abschreiben | K3: akt. Wert | L3: Wertberichtigung | M3: Buchwert | N3: Standort | O3: Artikelnummer | P3: Vorgangstext | T3: Notiz
A4: Staubsauger | B4: Möbel Elmer | C4: Werkstrasse 46 | D4: 8767 | E4: Elm | F4: Glarus | G4: Schweiz | H4: 1.1.2021 | I4: 350.00 | J4: 2 | K4: 161.00 | L4: 0 | M4: 161 | N4: Haubtsitz | O4: 435.782 | P4: Staubsauger *435.782 | T4: Typ Wetro 67 Mit Klappbeiten zusammenlegbar
A5: Kaffemaschine | B5: Jura | C5: Hauptgasse | D5: 3007 | E5: Bern\Berne * | F5: Bern\Berne | G5: Schweiz | H5: 1.1.2011 | I5: 120 | J5: 1 | K5: 00.00 | L5: 0 | M5: 0 | O5: 45629Ju | P5: Kaffemaschine *45629Ju
A6: Waschmaschine | B6: Miele | C6: Baarstrasse 56 | D6: 6300 | E6: Zug | F6: Zug | G6: Schweiz | H6: 1.1.2020 | I6: 2416 | J6: 10 | K6: 1807.17 | L6: -00.17 | M6: 1807 | N6: Haubtgeschäft | O6: 4567373 | P6: Waschmaschine *4567373

Sheet Waren
B1: Warenlager | G1: Mit Rechtsklick Menü offnen
F2: Summen | G2: =SUM(G5:G79) -> 1162.149975 | H2: =SUM(H4:H79) -> 1795.200005 | K2: =SUM(K4:K79) -> 134.35
A3: Bezeichnung | B3: ArtikelNr | C3: Lieferant | D3: Epreis | E3: Vpreis | F3: Bestand10 | G3: L Wert | H3: V Wert | I3: verkauft | J3: eingekauft | K3: Gewinn
A4: Div. Artikel (ohne Nachführung) | B4: 0 | C4: diese Zeile nicht löschen | D4: 0 | E4: 0 | F4: D | G4: 0 | H4: 0 | I4: 0 | J4: 0 | K4: 0
A5: Auto Lack Dose Ral 4003 | B5: Ral 4003 | C5: Farben AG | D5: 12.5 | E5: 35.70000076 | F5: 10 | G5: 125 | H5: 357.0000076 | I5: 0 | J5: 0 | K5: 0
A6: Schleifmittel | B6: Eco 1345 | C6: PKW ErsatKomponeten | D6: 45.09999847 | E6: 63.09999847 | F6: 9 | G6: 405.8999863 | H6: 567.8999863 | I6: 1 | J6: 0 | K6: 18
A7: HD Hartwachs 250ml | B7: 34.223 | C7: dynasol | D7: 26.75 | E7: 37.5 | F7: 11 | G7: 294.25 | H7: 412.5 | I7: 3 | J7: 8 | K7: 32.25
A8: Rosner Rocryl Color Ral9006 | B8: R4590310-0050 | C8: Rosner Dynasol | D8: 39.59999847 | E8: 55.40000153 | F8: 7 | G8: 277.1999893 | H8: 387.8000107 | I8: 5 | J8: 5 | K8: 79
A9: Impralan Deckfabe D150 Ral9010 | B9: W710010020 | C9: Dynasol 4710 Balsthal | D9: 29.89999962 | E9: 35 | F9: 2 | G9: 59.79999924 | H9: 70 | I9: 1 | J9: 3 | K9: 5.1

Sheet Dienste
B1: Dienstleistungen | E1: Mit Rechtsklick Menü offnen
A3: Bezeichnung | B3: Beschreibung | C3: Preis | D3: Menge | E3: Bemerkung
A4: Montage vor Ort | B4: Arbeiten (h) & Reisezeit | C4: 180 | D4: 1.5 | E4: Arbeitszeit & Reisezeit
A5: Werkstatt 1 | B5: Beulen und Delle am Fahrzeug | C5: 160 | D5: 2 | E5: Fachmann Autospengler
A6: Werkstatt 2 | B6: Smart Repair | C6: 180 | D6: 1 | E6: Fachmann Autospengler
A7: Werkstatt 2 | B7: Lackieren | C7: 180 | D7: 3 | E7: Fachmann Maler
A8: Hagel Kosten Voranschlag | B8: Hagelschäden erfassen & Rep.-Aufwand schätzen | C8: 200 | D8: 1 | E8: Schätzung +/- 15%
A9: Pauschale Beratung | B9: Preis pr 1/2 h | C9: 45 | D9: 1 | E9: Wird nur eingesetzt wenn kein Zahlauftrag erfolgt

Sheet Kunden
D1: Mit Rechtsklick Menü offnen
A2: IdNr | B2: Nachname | C2: Vorname | D2: Telefon | E2: Handy | F2: Strasse | G2: Plz | H2: Ort | I2: Kanton | J2: Land | K2: Firma | L2: Geburtstag | M2: briefliche Anrede | N2: E-Mail | O2: Bedienung | P2: letzter Besuch | Q2: Stammkunde | R2: Notiz 1 | S2: Notiz 2 | T2: Nachname Vorname *Nr Kunde | U2: Nachname L | V2: Vorname L | W2: Telefon L | X2: Handy | Y2: Strasse L | Z2: Plz L | AA2: Ort L | AB2: Kanton | AC2: Land | AD2: Firma L | AE2: E-Mail L
A3: 509 | B3: Friederich | C3: Fritz | D3: 045 453 06 74 | E3: 075 342 53 99 | F3: Fruedenstrasse 2 | G3: 1657 | H3: Abländschen | I3: Bern\Berne | J3: Schweiz | K3: Friedrich GmbH | L3: 09.10.1991 | M3: Sehr geehrter Herr | N3: fritzfried@google.com | P3: 16.09.2022 | Q3: Nein | R3: 1 | T3: Friederich Fritz *509 | U3: Friederich | V3: Fritz | W3: 045 453 06 74 | X3: 075 342 53 99 | Y3: Fruedenstrasse 14 | Z3: 1657 | AA3: Abländschen | AB3: Bern\Berne | AC3: Schweiz | AD3: Friedrich GmbH | AE3: fritzfried@google.com
A4: 504 | B4: Häuseler | C4: Herbert | D4: 045 345 83 29 | E4: 058 765 23 74 | F4: Kreuzweg 34 | G4: 8607 | H4: Aathal-Seegräben | I4: Zürich | J4: Schweiz | K4: Garage Elite-Aare AG | L4: 30.08.1991 | M4: Sehr geehrter Herr | N4: Herbi91@hotmail.com | O4: Klaus | Q4: Nein | S4: leer | T4: Häuseler Herbert *504 | U4: Häuseler | V4: Herbert | W4: 045 345 83 29 | X4: 058 765 23 74 | Y4: Kreuzweg 34 | Z4: 8607 | AA4: Aathal-Seegräben | AB4: Zürich | AC4: Schweiz | AD4: Garage Elite-Aare AG | AE4: Herbi91@hotmail.com
A5: 507 | B5: Künstler | C5: Alena | D5: 033 5636889 | E5: 075 566 88 77 | F5: Alpenstrasee 45 | G5: 3800 | H5: Matten b. Interlaken | I5: Bern\Berne | J5: 0 | K5: 16.09.2022 | L5: 14.09.1991 | M5: Sehr geehrte Frau | N5: kumba@hotmail.com | O5: Klaus | P5: 16.09.2022 | Q5: Nein | R5: 346 | S5: 5 | T5: Künstler Alena *507 | U5: Künstler | V5: Alena | W5: 033 5636889 | X5: 075 566 88 77 | Y5: Alpenstrasee 45 | Z5: 3800 | AA5: Matten b. Interlaken | AB5: Bern\Berne | AC5: Schweiz | AD5: Kumba AG | AE5: kumba@hotmail.com
A6: 500 | B6: Last | C6: James | D6: 078 324 21 33 | E6: 081 233 456 | F6: Parade Platz 27 | G6: 3604 | H6: Thun Dürrenast, Neufeld | I6: Bern\Berne | J6: 0 | K6: Meisner Porcolan | L6: 05.03.1987 | M6: Lieber Kunde | N6: james-last@hotmail.com | O6: Terline | P6: 19.09.2022 | Q6: Nein | R6: 124 | S6: Test5 | T6: Last James *500 | U6: Last | V6: James | W6: 078 324 21 33 | X6: 081 233 456 | Y6: Parade Platz 27 | Z6: 3612 | AA6: Steffisburg * | AB6: Bern\Berne | AC6: Schweiz | AD6: Swisscom | AE6: james-last@hotmail.com
A7: 501 | B7: Muster | C7: Felix | D7: 033 333 33 33 | E7: 079 452 61 41 | F7: Anfangstr. 1 | G7: 5600 | H7: Lenzburg | I7: Aargau | J7: 0 | K7: 19.09.2022 | L7: 04.10.1993 | M7: Sehr geehrter Herr | N7: must.ant@world.com | O7: Fidélé | P7: 19.09.2022 | Q7: Nein | R7: 6612 | S7: Test5 | T7: Muster Felix *501 | U7: Muster | V7: Felix | W7: 033 333 33 33 | X7: 079 452 61 41 | Y7: Anfangstr. 1 | Z7: 5600 | AA7: Lenzburg | AB7: Aargau | AC7: Schweiz | AD7: Hager AG | AE7: must.ant@world.com
A8: 503 | B8: Radmeister | C8: Rüdiger | D8: 043 63 87 20 | E8: 075 34 62 04 | F8: Chemin de Morrens 23 | G8: 1541 | H8: Morens FR | I8: Freiburg\Fribourg | J8: 0 | K8: Hotel Vue des Aples | L8: 16.07.1986 | M8: Sehr geehrter Herr | N8: phirad@meister.ch | O8: Terline | P8: 17.09.2022 | Q8: Ja | R8: 1 | S8: Test5 | T8: Radmeister Rüdiger *503 | U8: Radmeister | V8: Rüdiger | W8: 043 63 87 20 | X8: 075 34 62 04 | Y8: Chemin de Morrens 23 | Z8: 1541 | AA8: Bussy FR | AB8: Freiburg\Fribourg | AC8: Schweiz | AD8: Bike & Rad | AE8: phirad@meister.ch
A9: 502 | B9: Schön | C9: Bella | D9: 044 444 44 44 | E9: 078 456 67 89 | F9: Bahnhofstr. 4 | G9: 4444 | H9: Rümlingen | I9: Basel-Landschaft | J9: 0 | K9: Schön AG Rümlingen | L9: 11.09.1996 | M9: Sehr geehrte Frau | N9: exhella@world.com | O9: Fidélé | P9: 18.09.2021 | Q9: Ja | R9: 125 | S9: Test5 | T9: Schön Bella *502 | U9: Schön | V9: Bella | W9: 044 444 44 44 | X9: 078 456 67 89 | Y9: Bahnhofstr. 4 | Z9: 4444 | AA9: Rümlingen | AB9: Basel-Landschaft | AC9: 0 | AD9: Schön AG Rümlingen | AE9: exhella@world.com

Sheet Mitarbeiter
C1: Mit Rechtsklick Menü offnen
A2: IdNr | B2: Nachname | C2: Vorname | D2: Telefon | E2: Handy | F2: Strasse | G2: Plz | H2: Ort | I2: Kanton | J2: Land | K2: Firma | L2: Geburtstag | M2: briefliche Anrede | N2: E-Mail | O2: Anstellung | P2: Beruf | Q2: Funktion | R2: Löhne | S2: Sozialleistungen | T2: Nachname Vorname *Nr Kunde
A3: 102 | B3: Faberger | C3: Fidèlé | D3: 033 333 33 33 | E3: 079 452 61 41 | F3: Anfangstr. 1 | G3: 1433 | H3: Suchy | I3: Vaud\Waadt | J3: Schweiz | K3: Uhren SA LeLocle | L3: 04.10.1993 | M3: Sehr geehrter Herr | N3: must.ant@world.com | O3: Festangestellte | P3: Keycount Manager | Q3: leer | T3: Faberger Fidèlé *102
A4: 103 | B4: Geiger | C4: Viola | D4: 022 | E4: 079 | F4: Musikgasse 12 | G4: 6720 | H4: Campo (Blenio) | I4: Ticino\Tessin | J4: Schweiz | K4: Geigenbau Boutique | L4: 26.09.1992 | M4: Sehr geehrte Frau | N4: Viola28@hotmail.com | O4: Teilzeit | P4: Violistin | Q4: 2. Geige | T4: Geiger Viola *103
A5: 101 | B5: Hauser | C5: Hanna | D5: 0 | E5: 081 233 456 | F5: Parade Platz 27 | G5: 6102 | H5: Malters | I5: Luzern | J5: Schweiz | K5: Malerei Farbtopf AG | L5: 05.03.1987 | M5: Lieber Kunde | N5: THansen@hotmail.com | O5: Teilzeit 80% | P5: Verkäuferin | Q5: leer | R5: 4100 | S5: 492 | T5: Hauser Hanna *101
A6: 104 | B6: Paulin | C6: Paula | D6: 066 345 23 76 | F6: Schlachweg 1315 | G6: 6315 | H6: Morgarten | I6: Zug | J6: Schweiz | K6: Bühler Carosserie GmbH | L6: 17.09.1985 | M6: Sehr geehrte Frau | N6: PauPala@hotmnail.com | O6: fest | P6: Malerin | T6: Paulin Paula *104

Sheet Rechnung
B1: Rechnung | H1: Rechnung | I1: Lieferschein | J1: Drucken | K1: Speichern | L1: Korrex
A2: Datum: | B2: 19.09.2022 | C2: Rechnung Nr. | E2: 20220037
A3: Zu Handen : | B3: Last James | F3: 500
A4: *******************************************
A5: Rechnungsadresse | C5: Lieferadresse
A6: Meisner Porcolan | C6: Meisner Porcolan
A7: Parade Platz 27 | C7: Parade Platz 27
A8: 500 Thun Dürrenast, Neufeld | C8: 3612 Steffisburg *
A9: Tel: 078 324 21 33 | C9: Tel: 078 324 21 33
A10: Email: james-last@hotmail.com | C10: Email: james-last@hotmail.com
A11: zahlbar bis | B11: 19.10.2022 | C11: Lieferdat. | D11: 17.09.2022
A12: Kontaktperson: | B12: Alfred Bühler | C12: Versand: | D12: kein
A13: Zahlungkondition: | B13: keine | C13: Lieferbed. | D13: keine
B14: Währung | D14: 13 | E14: MwSt | F14: Total
B15: CHF | E15: 7.7 | F15: =ROUND(SUM(F17:F28),1) -> 313.2 | G15: Pos
A16: Bezeichnung | B16: Beschreibung | C16: Preis | D16: Menge | E16: MwSt | F16: SubTotal | G16: Pos
A17: Rosner Rocryl Color Ral9006 | B17: R4590310-0050 | C17: 55.40000153 | D17: 2 | E17: =C17*D17*$E$15/100 -> 8.531600235 | F17: =C17*D17+E17 -> 119.3316033 | G17: 1
A18: Werkstatt 2 | B18: Lackieren | C18: 180 | D18: 1 | E18: 13.86 | F18: =C18*D18+E18 -> 193.86 | G18: 2
E19: 0 | F19: 0 | G19: 3
E20: 0 | F20: 0 | G20: 4
E21: 0 | F21: 0 | G21: 5
E22: 0 | F22: 0 | G22: 6
E23: 0 | F23: 0 | G23: 7
E24: 0 | F24: 0 | G24: 8
E25: 0 | F25: 0 | G25: 9
E26: 0 | F26: 0 | G26: 10
E27: 0 | F27: 0 | G27: 11
E28: 0 | F28: 0 | G28: 12
A30: Vielen Dank für Ihren Auftrag!
A31: Zahlung Bar oder auf IBAN CH89 0839 3042 0223

Sheet Quittung
B1: Quittung: Carosserie Bühler | I1: KORREX | J1: DRUCKEN
B2: Nr: | C2: 20210002 | E2: Betrag
A3: Währung: | B3: CHF | F3: CHF | G3: 3400
E4: WwSt | F4: 0 | G4: 0
E5: Betrag Total | G5: 3400
A6: in Worten: | B6: Drei Tausend _Vier Hundert _ Fr./ keine Rp.
A8: von: | B8: Alfred Bühler Carosserie Bühler
A10: für: | B10: Faberger Fidèlé *102
A12: Bez: | B12: Löhne*
A14: Ort: | B14: 6340 | C14: Baar | G14: Betrag dankend erhalten
D15: Visum:
B16: Datum: | C16: 17.09.2022
A33: KOPIE | B33: Quittung: Carosserie Bühler
B34: Nr: | C34: 20210002 | E34: Betrag
A35: Währung: | B35: CHF | F35: CHF | G35: 3400
E36: WwSt | F36: 0 | G36: 0
E37: Betrag Total | G37: 3400
A38: in Worten: | B38: Drei Tausend _Vier Hundert _ Fr./ keine Rp.
A40: von: | B40: Alfred Bühler Carosserie Bühler
A42: für: | B42: Faberger Fidèlé *102
A44: Bez: | B44: Löhne*
A46: Ort: | B46: 6340 | C46: Baar | G46: Betrag dankend erhalten
D47: Visum:
B48: Datum: | C48: 17.09.2022

Sheet PLZ (hidden)
A1: 1 | B1: Ort | C1: Plz | D1: Kanton | E1: Abk. | F1: Land | G1: 7 | H1: 8 | I1: 9 | J1: 10 | K1: Plz | L1: Ort | M1: Kanton | N1: Abk. | O1: Land
B2: Aadorf | C2: 8355 | D2: Thurgau | E2: TG | F2: Schweiz | J2: 0 | K2: 1000 | L2: Lausanne * | M2: Vaud\Waadt | N2: VD | O2: Schweiz
B3: Aarau * | C3: 5000 | D3: Aargau | E3: AG | F3: Schweiz | K3: 1003 | L3: Lausanne * | M3: Vaud\Waadt | N3: VD | O3: Schweiz
B4: Aarau * | C4: 5004 | D4: Aargau | E4: AG | F4: Schweiz | K4: 1004 | L4: Lausanne * | M4: Vaud\Waadt | N4: VD | O4: Schweiz
B5: Aarau Rohr | C5: 5032 | D5: Aargau | E5: AG | F5: Schweiz | K5: 1005 | L5: Lausanne * | M5: Vaud\Waadt | N5: VD | O5: Schweiz
B6: Aarberg | C6: 3270 | D6: Bern\Berne | E6: BE | F6: Schweiz | K6: 1006 | L6: Lausanne * | M6: Vaud\Waadt | N6: VD | O6: Schweiz
B7: Aarburg | C7: 4663 | D7: Aargau | E7: AG | F7: Schweiz | K7: 1007 | L7: Lausanne * | M7: Vaud\Waadt | N7: VD | O7: Schweiz
B8: Aarwangen | C8: 4912 | D8: Bern\Berne | E8: BE | F8: Schweiz | K8: 1008 | L8: Pully | M8: Vaud\Waadt | N8: VD | O8: Schweiz
B9: Aathal-Seegräben | C9: 8607 | D9: Zürich | E9: ZH | F9: Schweiz | K9: 1009 | L9: Lausanne * | M9: Vaud\Waadt | N9: VD | O9: Schweiz
B10: Aawangen | C10: 8522 | D10: Thurgau | E10: TG | F10: Schweiz | K10: 1010 | L10: Lausanne * | M10: Vaud\Waadt | N10: VD | O10: Schweiz
B11: Abländschen | C11: 1657 | D11: Bern\Berne | E11: BE | F11: Schweiz | K11: 1011 | L11: Lausanne * | M11: Vaud\Waadt | N11: VD | O11: Schweiz
B12: Abtwil AG | C12: 5646 | D12: Aargau | E12: AG | F12: Schweiz | K12: 1012 | L12: Lausanne * | M12: Vaud\Waadt | N12: VD | O12: Schweiz
B13: Abtwil SG | C13: 9030 | D13: St. Gallen | E13: SG | F13: Schweiz | K13: 1015 | L13: Lausanne * | M13: Vaud\Waadt | N13: VD | O13: Schweiz
B14: Achseten | C14: 3725 | D14: Bern\Berne | E14: BE | F14: Schweiz | K14: 1018 | L14: Lausanne * | M14: Vaud\Waadt | N14: VD | O14: Schweiz
B15: Aclens | C15: 1123 | D15: Vaud\Waadt | E15: VD | F15: Schweiz | K15: 1020 | L15: Renens VD | M15: Vaud\Waadt | N15: VD | O15: Schweiz
B16: Acquarossa | C16: 6716 | D16: Ticino\Tessin | E16: TI | F16: Schweiz | K16: 1022 | L16: Chavannes-près-Renens | M16: Vaud\Waadt | N16: VD | O16: Schweiz
B17: Adelboden | C17: 3715 | D17: Bern\Berne | E17: BE | F17: Schweiz | K17: 1023 | L17: Crissier | M17: Vaud\Waadt | N17: VD | O17: Schweiz
B18: Adetswil | C18: 8345 | D18: Zürich | E18: ZH | F18: Schweiz | K18: 1024 | L18: Ecublens VD | M18: Vaud\Waadt | N18: VD | O18: Schweiz
B19: Adligenswil | C19: 6043 | D19: Luzern | E19: LU | F19: Schweiz | K19: 1025 | L19: St-Sulpice VD | M19: Vaud\Waadt | N19: VD | O19: Schweiz
B20: Adlikon b. Andelfingen | C20: 8452 | D20: Zürich | E20: ZH | F20: Schweiz | J20: 2 | K20: 1026 | L20: Denges | M20: Vaud\Waadt | N20: VD | O20: Schweiz
B21: Adlikon b. Regensdorf | C21: 8106 | D21: Zürich | E21: ZH | F21: Schweiz | K21: 1026 | L21: Echandens | M21: Vaud\Waadt | N21: VD | O21: Schweiz
B22: Adliswil | C22: 8134 | D22: Zürich | E22: ZH | F22: Schweiz | K22: 1027 | L22: Lonay | M22: Vaud\Waadt | N22: VD | O22: Schweiz
B23: Aedermannsdorf | C23: 4714 | D23: Solothurn | E23: SO | F23: Schweiz | K23: 1028 | L23: Préverenges | M23: Vaud\Waadt | N23: VD | O23: Schweiz
B24: Aefligen | C24: 3426 | D24: Bern\Berne | E24: BE | F24: Schweiz | K24: 1029 | L24: Villars-Ste-Croix | M24: Vaud\Waadt | N24: VD | O24: Schweiz
B25: Aegerten | C25: 2558 | D25: Bern\Berne | E25: BE | F25: Schweiz | K25: 1030 | L25: Bussigny-près-Lausanne | M25: Vaud\Waadt | N25: VD | O25: Schweiz
B26: Aesch (Neftenbach) | C26: 8412 | D26: Zürich | E26: ZH | F26: Schweiz | K26: 1031 | L26: Mex VD | M26: Vaud\Waadt | N26: VD | O26: Schweiz
B27: Aesch BL | C27: 4147 | D27: Basel-Landschaft | E27: BL | F27: Schweiz | K27: 1032 | L27: Romanel-sur-Lausanne | M27: Vaud\Waadt | N27: VD | O27: Schweiz
B28: Aesch LU | C28: 6287 | D28: Luzern | E28: LU | F28: Schweiz | K28: 1033 | L28: Cheseaux-sur-Lausanne | M28: Vaud\Waadt | N28: VD | O28: Schweiz
B29: Aesch ZH | C29: 8904 | D29: Zürich | E29: ZH | F29: Schweiz | K29: 1034 | L29: Boussens | M29: Vaud\Waadt | N29: VD | O29: Schweiz
B30: Aeschau | C30: 3536 | D30: Bern\Berne | E30: BE | F30: Schweiz | K30: 1035 | L30: Bournens | M30: Vaud\Waadt | N30: VD | O30: Schweiz
B31: Aeschi b. Spiez | C31: 3703 | D31: Bern\Berne | E31: BE | F31: Schweiz | K31: 1036 | L31: Sullens | M31: Vaud\Waadt | N31: VD | O31: Schweiz
B32: Aeschi SO | C32: 4556 | D32: Solothurn | E32: SO | F32: Schweiz | K32: 1037 | L32: Etagnières | M32: Vaud\Waadt | N32: VD | O32: Schweiz
B33: Aeschiried | C33: 3703 | D33: Bern\Berne | E33: BE | F33: Schweiz | K33: 1038 | L33: Bercher | M33: Vaud\Waadt | N33: VD | O33: Schweiz
B34: Aeschlen b. Oberdiessbach | C34: 3672 | D34: Bern\Berne | E34: BE | F34: Schweiz | J34: 3 | K34: 1040 | L34: St-Barthélemy VD | M34: Vaud\Waadt | N34: VD | O34: Schweiz
B35: Aeschlen ob Gunten | C35: 3656 | D35: Bern\Berne | E35: BE | F35: Schweiz | K35: 1040 | L35: Villars-le-Terroir | M35: Vaud\Waadt | N35: VD | O35: Schweiz
B36: Aetigkofen | C36: 4583 | D36: Solothurn | E36: SO | F36: Schweiz | K36: 1040 | L36: Echallens | M36: Vaud\Waadt | N36: VD | O36: Schweiz
B37: Aetingen | C37: 4587 | D37: Solothurn | E37: SO | F37: Schweiz | J37: 6 | K37: 1041 | L37: Dommartin | M37: Vaud\Waadt | N37: VD | O37: Schweiz
B38: Aettenschwil | C38: 5645 | D38: Aargau | E38: AG | F38: Schweiz | K38: 1041 | L38: Poliez-Pittet | M38: Vaud\Waadt | N38: VD | O38: Schweiz
B39: Aeugst am Albis | C39: 8914 | D39: Zürich | E39: ZH | F39: Schweiz | K39: 1041 | L39: Bottens | M39: Vaud\Waadt | N39: VD | O39: Schweiz
B40: Aeugstertal | C40: 8914 | D40: Zürich | E40: ZH | F40: Schweiz | K40: 1041 | L40: Naz | M40: Vaud\Waadt | N40: VD | O40: Schweiz
B41: Affeltrangen | C41: 9556 | D41: Thurgau | E41: TG | F41: Schweiz | K41: 1041 | L41: Montaubion-Chardonney | M41: Vaud\Waadt | N41: VD | O41: Schweiz
B42: Affoltern am Albis | C42: 8910 | D42: Zürich | E42: ZH | F42: Schweiz | K42: 1041 | L42: Poliez-le-Grand | M42: Vaud\Waadt | N42: VD | O42: Schweiz
B43: Affoltern im Emmental | C43: 3416 | D43: Bern\Berne | E43: BE | F43: Schweiz | J43: 3 | K43: 1042 | L43: Bettens | M43: Vaud\Waadt | N43: VD | O43: Schweiz
B44: Agarn | C44: 3951 | D44: Valais\Wallis | E44: VS | F44: Schweiz | K44: 1042 | L44: Bioley-Orjulaz | M44: Vaud\Waadt | N44: VD | O44: Schweiz
B45: Agarone | C45: 6597 | D45: Ticino\Tessin | E45: TI | F45: Schweiz | K45: 1042 | L45: Assens | M45: Vaud\Waadt | N45: VD | O45: Schweiz
B46: Agasul | C46: 8308 | D46: Zürich | E46: ZH | F46: Schweiz | K46: 1043 | L46: Sugnens | M46: Vaud\Waadt | N46: VD | O46: Schweiz
B47: Agiez | C47: 1352 | D47: Vaud\Waadt | E47: VD | F47: Schweiz | K47: 1044 | L47: Fey | M47: Vaud\Waadt | N47: VD | O47: Schweiz
B48: Agno | C48: 6982 | D48: Ticino\Tessin | E48: TI | F48: Schweiz | K48: 1045 | L48: Ogens | M48: Vaud\Waadt | N48: VD | O48: Schweiz
B49: Agra | C49: 6927 | D49: Ticino\Tessin | E49: TI | F49: Schweiz | K49: 1046 | L49: Rueyres | M49: Vaud\Waadt | N49: VD | O49: Schweiz
B50: Agriswil | C50: 3216 | D50: Freiburg\Fribourg | E50: FR | F50: Schweiz | K50: 1047 | L50: Oppens | M50: Vaud\Waadt | N50: VD | O50: Schweiz
B51: Aigle | C51: 1860 | D51: Vaud\Waadt | E51: VD | F51: Schweiz | K51: 1052 | L51: Le Mont-sur-Lausanne | M51: Vaud\Waadt | N51: VD | O51: Schweiz
B52: Aïre | C52: 1219 | D52: Genève\Genf | E52: GE | F52: Schweiz | J52: 2 | K52: 1053 | L52: Bretigny-sur-Morrens | M52: Vaud\Waadt | N52: VD | O52: Schweiz
B53: Aire-la-Ville | C53: 1288 | D53: Genève\Genf | E53: GE | F53: Schweiz | K53: 1053 | L53: Cugy VD | M53: Vaud\Waadt | N53: VD | O53: Schweiz
B54: Airolo | C54: 6780 | D54: Ticino\Tessin | E54: TI | F54: Schweiz | K54: 1054 | L54: Morrens VD | M54: Vaud\Waadt | N54: VD | O54: Schweiz
B55: Alberswil | C55: 6248 | D55: Luzern | E55: LU | F55: Schweiz | K55: 1055 | L55: Froideville | M55: Vaud\Waadt | N55: VD | O55: Schweiz
B56: Albeuve | C56: 1669 | D56: Freiburg\Fribourg | E56: FR | F56: Schweiz | K56: 1058 | L56: Villars-Tiercelin | M56: Vaud\Waadt | N56: VD | O56: Schweiz
B57: Albinen | C57: 3955 | D57: Valais\Wallis | E57: VS | F57: Schweiz | K57: 1059 | L57: Peney-le-Jorat | M57: Vaud\Waadt | N57: VD | O57: Schweiz
B58: Albligen | C58: 3183 | D58: Bern\Berne | E58: BE | F58: Schweiz | K58: 1061 | L58: Villars-Mendraz | M58: Vaud\Waadt | N58: VD | O58: Schweiz
B59: Alchenflüh | C59: 3422 | D59: Bern\Berne | E59: BE | F59: Schweiz | K59: 1062 | L59: Sottens | M59: Vaud\Waadt | N59: VD | O59: Schweiz
B60: Alchenstorf | C60: 3473 | D60: Bern\Berne | E60: BE | F60: Schweiz | J60: 4 | K60: 1063 | L60: Peyres-Possens | M60: Vaud\Waadt | N60: VD | O60: Schweiz
B61: Aldesago | C61: 6974 | D61: Ticino\Tessin | E61: TI | F61: Schweiz | K61: 1063 | L61: Boulens | M61: Vaud\Waadt | N61: VD | O61: Schweiz
B62: Algetshausen | C62: 9249 | D62: St. Gallen | E62: SG | F62: Schweiz | K62: 1063 | L62: Chapelle-sur-Moudon | M62: Vaud\Waadt | N62: VD | O62: Schweiz
B63: Alikon | C63: 5643 | D63: Aargau | E63: AG | F63: Schweiz | K63: 1063 | L63: Martherenges | M63: Vaud\Waadt | N63: VD | O63: Schweiz
B64: Allaman | C64: 1165 | D64: Vaud\Waadt | E64: VD | F64: Schweiz | K64: 1066 | L64: Epalinges | M64: Vaud\Waadt | N64: VD | O64: Schweiz
B65: Alle | C65: 2942 | D65: Jura | E65: JU | F65: Schweiz | K65: 1068 | L65: Les Monts-de-Pully | M65: Vaud\Waadt | N65: VD | O65: Schweiz
B66: Allens | C66: 1304 | D66: Vaud\Waadt | E66: VD | F66: Schweiz | K66: 1070 | L66: Puidoux | M66: Vaud\Waadt | N66: VD | O66: Schweiz
B67: Allenwinden | C67: 6319 | D67: Zug | E67: ZG | F67: Schweiz | J67: 3 | K67: 1071 | L67: Rivaz | M67: Vaud\Waadt | N67: VD | O67: Schweiz
B68: Allerheiligenberg | C68: 4615 | D68: Solothurn | E68: SO | F68: Schweiz | K68: 1071 | L68: St-Saphorin (Lavaux) | M68: Vaud\Waadt | N68: VD | O68: Schweiz
B69: Allmendingen b. Bern\Berne | C69: 3112 | D69: Bern\Berne | E69: BE | F69: Schweiz | K69: 1071 | L69: Chexbres | M69: Vaud\Waadt | N69: VD | O69: Schweiz
B70: Allschwil | C70: 4123 | D70: Basel-Landschaft | E70: BL | F70: Schweiz | K70: 1072 | L70: Forel (Lavaux) | M70: Vaud\Waadt | N70: VD | O70: Schweiz
B71: Almens | C71: 7416 | D71: Graubünden\Grischun | E71: GR | F71: Schweiz | J71: 2 | K71: 1073 | L71: Mollie-Margot | M71: Vaud\Waadt | N71: VD | O71: Schweiz
B72: Alosen | C72: 6315 | D72: Zug | E72: ZG | F72: Schweiz | K72: 1073 | L72: Savigny | M72: Vaud\Waadt | N72: VD | O72: Schweiz
B73: Alp Grüm | C73: 7710 | D73: Graubünden\Grischun | E73: GR | F73: Schweiz | K73: 1076 | L73: Ferlens VD | M73: Vaud\Waadt | N73: VD | O73: Schweiz
B74: Alpnach Dorf | C74: 6055 | D74: Obwalden | E74: OW | F74: Schweiz | K74: 1077 | L74: Servion | M74: Vaud\Waadt | N74: VD | O74: Schweiz
B75: Alpnachstad | C75: 6053 | D75: Obwalden | E75: OW | F75: Schweiz | K75: 1078 | L75: Essertes | M75: Vaud\Waadt | N75: VD | O75: Schweiz
B76: Alpthal | C76: 8849 | D76: Schwyz | E76: SZ | F76: Schweiz | K76: 1080 | L76: Les Cullayes | M76: Vaud\Waadt | N76: VD | O76: Schweiz
B77: Alt St. Johann | C77: 9656 | D77: St. Gallen | E77: SG | F77: Schweiz | K77: 1081 | L77: Montpreveyres | M77: Vaud\Waadt | N77: VD | O77: Schweiz
B78: Altbüron | C78: 6147 | D78: Luzern | E78: LU | F78: Schweiz | K78: 1082 | L78: Corcelles-le-Jorat | M78: Vaud\Waadt | N78: VD | O78: Schweiz
B79: Altdorf SH | C79: 8243 | D79: Schaffhausen | E79: SH | F79: Schweiz | K79: 1083 | L79: Mézières VD | M79: Vaud\Waadt | N79: VD | O79: Schweiz
B80: Altdorf UR | C80: 6460 | D80: Uri | E80: UR | F80: Schweiz | K80: 1084 | L80: Carrouge VD | M80: Vaud\Waadt | N80: VD | O80: Schweiz
B81: Alten | C81: 8453 | D81: Zürich | E81: ZH | F81: Schweiz | K81: 1085 | L81: Vulliens | M81: Vaud\Waadt | N81: VD | O81: Schweiz
B82: Altendorf | C82: 8852 | D82: Schwyz | E82: SZ | F82: Schweiz | K82: 1088 | L82: Ropraz | M82: Vaud\Waadt | N82: VD | O82: Schweiz
B83: Altenrhein | C83: 9423 | D83: St. Gallen | E83: SG | F83: Schweiz | K83: 1090 | L83: La Croix (Lutry) | M83: Vaud\Waadt | N83: VD | O83: Schweiz
B84: Alterswil FR | C84: 1715 | D84: Freiburg\Fribourg | E84: FR | F84: Schweiz | J84: 3 | K84: 1091 | L84: Aran | M84: Vaud\Waadt | N84: VD | O84: Schweiz
B85: Alterswilen | C85: 8573 | D85: Thurgau | E85: TG | F85: Schweiz | K85: 1091 | L85: Chenaux | M85: Vaud\Waadt | N85: VD | O85: Schweiz
B86: Altikon | C86: 8479 | D86: Zürich | E86: ZH | F86: Schweiz | K86: 1091 | L86: Grandvaux | M86: Vaud\Waadt | N86: VD | O86: Schweiz
B87: Altishausen | C87: 8573 | D87: Thurgau | E87: TG | F87: Schweiz | K87: 1092 | L87: Belmont-sur-Lausanne | M87: Vaud\Waadt | N87: VD | O87: Schweiz
B88: Altishofen | C88: 6246 | D88: Luzern | E88: LU | F88: Schweiz | K88: 1093 | L88: La Conversion | M88: Vaud\Waadt | N88: VD | O88: Schweiz
B89: Altnau | C89: 8595 | D89: Thurgau | E89: TG | F89: Schweiz | K89: 1094 | L89: Paudex | M89: Vaud\Waadt | N89: VD | O89: Schweiz
B90: Altstätten SG | C90: 9450 | D90: St. Gallen | E90: SG | F90: Schweiz | K90: 1095 | L90: Lutry | M90: Vaud\Waadt | N90: VD | O90: Schweiz
B91: Altwis | C91: 6286 | D91: Luzern | E91: LU | F91: Schweiz | J91: 2 | K91: 1096 | L91: Villette (Lavaux) | M91: Vaud\Waadt | N91: VD | O91: Schweiz
B92: Alvaneu Bad | C92: 7473 | D92: Graubünden\Grischun | E92: GR | F92: Schweiz | K92: 1096 | L92: Cully | M92: Vaud\Waadt | N92: VD | O92: Schweiz
B93: Alvaneu Dorf | C93: 7492 | D93: Graubünden\Grischun | E93: GR | F93: Schweiz | K93: 1097 | L93: Riex | M93: Vaud\Waadt | N93: VD | O93: Schweiz
B94: Alvaschein | C94: 7451 | D94: Graubünden\Grischun | E94: GR | F94: Schweiz | K94: 1098 | L94: Epesses | M94: Vaud\Waadt | N94: VD | O94: Schweiz
B95: Am Bach (Avers) | C95: 7447 | D95: Graubünden\Grischun | E95: GR | F95: Schweiz | K95: 1110 | L95: Morges | M95: Vaud\Waadt | N95: VD | O95: Schweiz
B96: Ambrì | C96: 6775 | D96: Ticino\Tessin | E96: TI | F96: Schweiz | K96: 1112 | L96: Echichens | M96: Vaud\Waadt | N96: VD | O96: Schweiz
B97: Amden | C97: 8873 | D97: St. Gallen | E97: SG | F97: Schweiz | K97: 1113 | L97: St-Saphorin-sur-Morges | M97: Vaud\Waadt | N97: VD | O97: Schweiz
B98: Aminona | C98: 3963 | D98: Valais\Wallis | E98: VS | F98: Schweiz | K98: 1114 | L98: Colombier VD | M98: Vaud\Waadt | N98: VD | O98: Schweiz
B99: Amlikon-Bissegg | C99: 8514 | D99: Thurgau | E99: TG | F99: Schweiz | K99: 1115 | L99: Vullierens | M99: Vaud\Waadt | N99: VD | O99: Schweiz
B100: Ammerswil AG | C100: 5600 | D100: Aargau | E100: AG | F100: Schweiz | K100: 1116 | L100: Cottens VD | M100: Vaud\Waadt | N100: VD | O100: Schweiz
B101: Ammerzwil BE | C101: 3257 | D101: Bern\Berne | E101: BE | F101: Schweiz | K101: 1117 | L101: Grancy | M101: Vaud\Waadt | N101: VD | O101: Schweiz
B102: Amriswil | C102: 8580 | D102: Thurgau | E102: TG | F102: Schweiz | K102: 1121 | L102: Bremblens | M102: Vaud\Waadt | N102: VD | O102: Schweiz
B103: Amsoldingen | C103: 3633 | D103: Bern\Berne | E103: BE | F103: Schweiz | K103: 1122 | L103: Romanel-sur-Morges | M103: Vaud\Waadt | N103: VD | O103: Schweiz
B104: Amsteg | C104: 6474 | D104: Uri | E104: UR | F104: Schweiz | K104: 1123 | L104: Aclens | M104: Vaud\Waadt | N104: VD | O104: Schweiz
B105: Andeer | C105: 7440 | D105: Graubünden\Grischun | E105: GR | F105: Schweiz | K105: 1124 | L105: Gollion | M105: Vaud\Waadt | N105: VD | O105: Schweiz
B106: Andelfingen | C106: 8450 | D106: Zürich | E106: ZH | F106: Schweiz | K106: 1125 | L106: Monnaz | M106: Vaud\Waadt | N106: VD | O106: Schweiz
B107: Andermatt | C107: 6490 | D107: Uri | E107: UR | F107: Schweiz | K107: 1126 | L107: Vaux-sur-Morges | M107: Vaud\Waadt | N107: VD | O107: Schweiz
B108: Andhausen | C108: 8572 | D108: Thurgau | E108: TG | F108: Schweiz | K108: 1127 | L108: Clarmont | M108: Vaud\Waadt | N108: VD | O108: Schweiz
B109: Andiast | C109: 7159 | D109: Graubünden\Grischun | E109: GR | F109: Schweiz | K109: 1128 | L109: Reverolle | M109: Vaud\Waadt | N109: VD | O109: Schweiz
B110: Andwil SG | C110: 9204 | D110: St. Gallen | E110: SG | F110: Schweiz | K110: 1131 | L110: Tolochenaz | M110: Vaud\Waadt | N110: VD | O110: Schweiz
B111: Andwil TG | C111: 8586 | D111: Thurgau | E111: TG | F111: Schweiz | K111: 1132 | L111: Lully VD | M111: Vaud\Waadt | N111: VD | O111: Schweiz
B112: Anglikon | C112: 5611 | D112: Aargau | E112: AG | F112: Schweiz | J112: 2 | K112: 1134 | L112: Vufflens-le-Château | M112: Vaud\Waadt | N112: VD | O112: Schweiz
B113: Anières | C113: 1247 | D113: Genève\Genf | E113: GE | F113: Schweiz | K113: 1134 | L113: Chigny | M113: Vaud\Waadt | N113: VD | O113: Schweiz
B114: Anwil | C114: 4469 | D114: Basel-Landschaft | E114: BL | F114: Schweiz | K114: 1135 | L114: Denens | M114: Vaud\Waadt | N114: VD | O114: Schweiz
B115: Anzère | C115: 1972 | D115: Valais\Wallis | E115: VS | F115: Schweiz | K115: 1136 | L115: Bussy-Chardonney | M115: Vaud\Waadt | N115: VD | O115: Schweiz
B116: Anzonico | C116: 6748 | D116: Ticino\Tessin | E116: TI | F116: Schweiz | K116: 1141 | L116: Sévery | M116: Vaud\Waadt | N116: VD | O116: Schweiz
B117: Appenzell | C117: 9050 | D117: Appenzell Innerrhoden | E117: AI | F117: Schweiz | K117: 1142 | L117: Pampigny | M117: Vaud\Waadt | N117: VD | O117: Schweiz
B118: Appenzell Eggerstanden | C118: 9050 | D118: Appenzell Innerrhoden | E118: AI | F118: Schweiz | K118: 1143 | L118: Apples | M118: Vaud\Waadt | N118: VD | O118: Schweiz
B119: Appenzell Enggenhütten | C119: 9050 | D119: Appenzell Innerrhoden | E119: AI | F119: Schweiz | K119: 1144 | L119: Ballens | M119: Vaud\Waadt | N119: VD | O119: Schweiz
B120: Appenzell Meistersrüte | C120: 9050 | D120: Appenzell Innerrhoden | E120: AI | F120: Schweiz | K120: 1145 | L120: Bière | M120: Vaud\Waadt | N120: VD | O120: Schweiz
B121: Appenzell Schlatt | C121: 9050 | D121: Appenzell Innerrhoden | E121: AI | F121: Schweiz | K121: 1146 | L121: Mollens VD | M121: Vaud\Waadt | N121: VD | O121: Schweiz
B122: Appenzell Steinegg | C122: 9050 | D122: Appenzell Innerrhoden | E122: AI | F122: Schweiz | K122: 1147 | L122: Montricher | M122: Vaud\Waadt | N122: VD | O122: Schweiz
B123: Apples | C123: 1143 | D123: Vaud\Waadt | E123: VD | F123: Schweiz | J123: 9 | K123: 1148 | L123: Cuarnens | M123: Vaud\Waadt | N123: VD | O123: Schweiz
B124: Aproz (Nendaz) | C124: 1994 | D124: Valais\Wallis | E124: VS | F124: Schweiz | K124: 1148 | L124: Moiry VD | M124: Vaud\Waadt | N124: VD | O124: Schweiz
B125: Aquila | C125: 6719 | D125: Ticino\Tessin | E125: TI | F125: Schweiz | K125: 1148 | L125: La Praz | M125: Vaud\Waadt | N125: VD | O125: Schweiz
B126: Aran | C126: 1091 | D126: Vaud\Waadt | E126: VD | F126: Schweiz | K126: 1148 | L126: Mont-la-Ville | M126: Vaud\Waadt | N126: VD | O126: Schweiz
B127: Aranno | C127: 6994 | D127: Ticino\Tessin | E127: TI | F127: Schweiz | K127: 1148 | L127: Chavannes-le-Veyron | M127: Vaud\Waadt | N127: VD | O127: Schweiz
B128: Arbaz | C128: 1974 | D128: Valais\Wallis | E128: VS | F128: Schweiz | K128: 1148 | L128: Mauraz | M128: Vaud\Waadt | N128: VD | O128: Schweiz
B129: Arbedo | C129: 6517 | D129: Ticino\Tessin | E129: TI | F129: Schweiz | K129: 1148 | L129: Villars-Bozon | M129: Vaud\Waadt | N129: VD | O129: Schweiz
B130: Arboldswil | C130: 4424 | D130: Basel-Landschaft | E130: BL | F130: Schweiz | K130: 1148 | L130: La Coudre | M130: Vaud\Waadt | N130: VD | O130: Schweiz
B131: Arbon | C131: 9320 | D131: Thurgau | E131: TG | F131: Schweiz | K131: 1148 | L131: L'Isle | M131: Vaud\Waadt | N131: VD | O131: Schweiz
B132: Arcegno | C132: 6618 | D132: Ticino\Tessin | E132: TI | F132: Schweiz | K132: 1149 | L132: Berolle | M132: Vaud\Waadt | N132: VD | O132: Schweiz
B133: Arch | C133: 3296 | D133: Bern\Berne | E133: BE | F133: Schweiz | K133: 1162 | L133: St-Prex | M133: Vaud\Waadt | N133: VD | O133: Schweiz
B134: Arconciel | C134: 1732 | D134: Freiburg\Fribourg | E134: FR | F134: Schweiz | K134: 1163 | L134: Etoy | M134: Vaud\Waadt | N134: VD | O134: Schweiz
B135: Ardez | C135: 7546 | D135: Graubünden\Grischun | E135: GR | F135: Schweiz | K135: 1164 | L135: Buchillon | M135: Vaud\Waadt | N135: VD | O135: Schweiz
B136: Ardon | C136: 1957 | D136: Valais\Wallis | E136: VS | F136: Schweiz | K136: 1165 | L136: Allaman | M136: Vaud\Waadt | N136: VD | O136: Schweiz
B137: Areuse | C137: 2015 | D137: Neuchâtel\Neuenburg | E137: NE | F137: Schweiz | K137: 1166 | L137: Perroy | M137: Vaud\Waadt | N137: VD | O137: Schweiz
B138: Arezen | C138: 7104 | D138: Graubünden\Grischun | E138: GR | F138: Schweiz | K138: 1167 | L138: Lussy-sur-Morges | M138: Vaud\Waadt | N138: VD | O138: Schweiz
B139: Argnoud (Ayent) | C139: 1966 | D139: Valais\Wallis | E139: VS | F139: Schweiz | K139: 1168 | L139: Villars-sous-Yens | M139: Vaud\Waadt | N139: VD | O139: Schweiz
B140: Arisdorf | C140: 4422 | D140: Basel-Landschaft | E140: BL | F140: Schweiz | K140: 1169 | L140: Yens | M140: Vaud\Waadt | N140: VD | O140: Schweiz
B141: Aristau | C141: 5628 | D141: Aargau | E141: AG | F141: Schweiz | K141: 1170 | L141: Aubonne | M141: Vaud\Waadt | N141: VD | O141: Schweiz
B142: Arlesheim | C142: 4144 | D142: Basel-Landschaft | E142: BL | F142: Schweiz | K142: 1172 | L142: Bougy-Villars | M142: Vaud\Waadt | N142: VD | O142: Schweiz
B143: Arnegg | C143: 9212 | D143: St. Gallen | E143: SG | F143: Schweiz | K143: 1173 | L143: Féchy | M143: Vaud\Waadt | N143: VD | O143: Schweiz
B144: Arnex-sur-Nyon | C144: 1277 | D144: Vaud\Waadt | E144: VD | F144: Schweiz | J144: 2 | K144: 1174 | L144: Montherod | M144: Vaud\Waadt | N144: VD | O144: Schweiz
B145: Arnex-sur-Orbe | C145: 1321 | D145: Vaud\Waadt | E145: VD | F145: Schweiz | K145: 1174 | L145: Pizy | M145: Vaud\Waadt | N145: VD | O145: Schweiz
B146: Arni AG | C146: 8905 | D146: Aargau | E146: AG | F146: Schweiz | K146: 1175 | L146: Lavigny | M146: Vaud\Waadt | N146: VD | O146: Schweiz
B147: Arni BE | C147: 3508 | D147: Bern\Berne | E147: BE | F147: Schweiz | K147: 1176 | L147: St-Livres | M147: Vaud\Waadt | N147: VD | O147: Schweiz
B148: Arogno | C148: 6822 | D148: Ticino\Tessin | E148: TI | F148: Schweiz | J148: 2 | K148: 1180 | L148: Tartegnin | M148: Vaud\Waadt | N148: VD | O148: Schweiz
B149: Arolla | C149: 1986 | D149: Valais\Wallis | E149: VS | F149: Schweiz | K149: 1180 | L149: Rolle | M149: Vaud\Waadt | N149: VD | O149: Schweiz
B150: Arosa | C150: 7050 | D150: Graubünden\Grischun | E150: GR | F150: Schweiz | K150: 1182 | L150: Gilly | M150: Vaud\Waadt | N150: VD | O150: Schweiz
B151: Arosio | C151: 6939 | D151: Ticino\Tessin | E151: TI | F151: Schweiz | K151: 1183 | L151: Bursins | M151: Vaud\Waadt | N151: VD | O151: Schweiz
B152: Arth | C152: 6415 | D152: Schwyz | E152: SZ | F152: Schweiz | J152: 2 | K152: 1184 | L152: Vinzel | M152: Vaud\Waadt | N152: VD | O152: Schweiz
B153: Arveyes | C153: 1884 | D153: Vaud\Waadt | E153: VD | F153: Schweiz | K153: 1184 | L153: Luins | M153: Vaud\Waadt | N153: VD | O153: Schweiz
B154: Arvigo | C154: 6543 | D154: Graubünden\Grischun | E154: GR | F154: Schweiz | K154: 1185 | L154: Mont-sur-Rolle | M154: Vaud\Waadt | N154: VD | O154: Schweiz
B155: Arvillard (Salins) | C155: 1991 | D155: Valais\Wallis | E155: VS | F155: Schweiz | K155: 1186 | L155: Essertines-sur-Rolle | M155: Vaud\Waadt | N155: VD | O155: Schweiz
B156: Arzier | C156: 1273 | D156: Vaud\Waadt | E156: VD | F156: Schweiz | K156: 1187 | L156: St-Oyens | M156: Vaud\Waadt | N156: VD | O156: Schweiz
B157: Arzo | C157: 6864 | D157: Ticino\Tessin | E157: TI | F157: Schweiz | J157: 2 | K157: 1188 | L157: Gimel | M157: Vaud\Waadt | N157: VD | O157: Schweiz
B158: Ascharina | C158: 7245 | D158: Graubünden\Grischun | E158: GR | F158: Schweiz | K158: 1188 | L158: St-George | M158: Vaud\Waadt | N158: VD | O158: Schweiz
B159: Ascona | C159: 6612 | D159: Ticino\Tessin | E159: TI | F159: Schweiz | K159: 1189 | L159: Saubraz | M159: Vaud\Waadt | N159: VD | O159: Schweiz
B160: Asp | C160: 5025 | D160: Aargau | E160: AG | F160: Schweiz | J160: 2 | K160: 1195 | L160: Dully | M160: Vaud\Waadt | N160: VD | O160: Schweiz
B161: Assens | C161: 1042 | D161: Vaud\Waadt | E161: VD | F161: Schweiz | K161: 1195 | L161: Bursinel | M161: Vaud\Waadt | N161: VD | O161: Schweiz
B162: Astano | C162: 6999 | D162: Ticino\Tessin | E162: TI | F162: Schweiz | K162: 1196 | L162: Gland | M162: Vaud\Waadt | N162: VD | O162: Schweiz
B163: Asuel | C163: 2954 | D163: Jura | E163: JU | F163: Schweiz | K163: 1197 | L163: Prangins | M163: Vaud\Waadt | N163: VD | O163: Schweiz
B164: Athenaz (Avusy) | C164: 1285 | D164: Genève\Genf | E164: GE | F164: Schweiz | K164: 1200 | L164: Genève\Genf * | M164: Genève\Genf | N164: GE | O164: Schweiz
B165: Attalens | C165: 1616 | D165: Freiburg\Fribourg | E165: FR | F165: Schweiz | K165: 1201 | L165: Genève\Genf * | M165: Genève\Genf | N165: GE | O165: Schweiz
B166: Attelwil | C166: 5056 | D166: Aargau | E166: AG | F166: Schweiz | K166: 1202 | L166: Genève\Genf * | M166: Genève\Genf | N166: GE | O166: Schweiz
B167: Attikon | C167: 8544 | D167: Zürich | E167: ZH | F167: Schweiz | K167: 1203 | L167: Genève\Genf * | M167: Genève\Genf | N167: GE | O167: Schweiz
B168: Attinghausen | C168: 6468 | D168: Uri | E168: UR | F168: Schweiz | K168: 1204 | L168: Genève\Genf * | M168: Genève\Genf | N168: GE | O168: Schweiz
B169: Attiswil | C169: 4536 | D169: Bern\Berne | E169: BE | F169: Schweiz | K169: 1205 | L169: Genève\Genf * | M169: Genève\Genf | N169: GE | O169: Schweiz
B170: Au SG | C170: 9434 | D170: St. Gallen | E170: SG | F170: Schweiz | K170: 1206 | L170: Genève\Genf * | M170: Genève\Genf | N170: GE | O170: Schweiz
B171: Au TG | C171: 8376 | D171: Thurgau | E171: TG | F171: Schweiz | K171: 1207 | L171: Genève\Genf * | M171: Genève\Genf | N171: GE | O171: Schweiz
B172: Au ZH | C172: 8804 | D172: Zürich | E172: ZH | F172: Schweiz | K172: 1208 | L172: Genève\Genf * | M172: Genève\Genf | N172: GE | O172: Schweiz
B173: Aubonne | C173: 1170 | D173: Vaud\Waadt | E173: VD | F173: Schweiz | K173: 1209 | L173: Genève\Genf * | M173: Genève\Genf | N173: GE | O173: Schweiz
B174: Auboranges | C174: 1673 | D174: Freiburg\Fribourg | E174: FR | F174: Schweiz | K174: 1212 | L174: Grand-Lancy | M174: Genève\Genf | N174: GE | O174: Schweiz
B175: Auddes-sur-Riddes | C175: 1914 | D175: Valais\Wallis | E175: VS | F175: Schweiz | J175: 2 | K175: 1213 | L175: Petit-Lancy | M175: Genève\Genf | N175: GE | O175: Schweiz
B176: Auenstein | C176: 5105 | D176: Aargau | E176: AG | F176: Schweiz | K176: 1213 | L176: Onex | M176: Genève\Genf | N176: GE | O176: Schweiz
B177: Augio | C177: 6547 | D177: Graubünden\Grischun | E177: GR | F177: Schweiz | K177: 1214 | L177: Vernier | M177: Genève\Genf | N177: GE | O177: Schweiz
B178: Augst BL | C178: 4302 | D178: Basel-Landschaft | E178: BL | F178: Schweiz | K178: 1215 | L178: Genève\Genf 15 Aéroport | M178: Genève\Genf | N178: GE | O178: Schweiz
B179: Aumont | C179: 1484 | D179: Freiburg\Fribourg | E179: FR | F179: Schweiz | K179: 1216 | L179: Cointrin | M179: Genève\Genf | N179: GE | O179: Schweiz
B180: Auressio | C180: 6661 | D180: Ticino\Tessin | E180: TI | F180: Schweiz | K180: 1217 | L180: Meyrin | M180: Genève\Genf | N180: GE | O180: Schweiz
B181: Aurigeno | C181: 6677 | D181: Ticino\Tessin | E181: TI | F181: Schweiz | K181: 1218 | L181: Le Grand-Saconnex | M181: Genève\Genf | N181: GE | O181: Schweiz
B182: Auslikon | C182: 8331 | D182: Zürich | E182: ZH | F182: Schweiz | J182: 3 | K182: 1219 | L182: Le Lignon | M182: Genève\Genf | N182: GE | O182: Schweiz
B183: Ausserberg | C183: 3938 | D183: Valais\Wallis | E183: VS | F183: Schweiz | K183: 1219 | L183: Aïre | M183: Genève\Genf | N183: GE | O183: Schweiz
B184: Ausserbinn | C184: 3995 | D184: Valais\Wallis | E184: VS | F184: Schweiz | K184: 1219 | L184: Châtelaine | M184: Genève\Genf | N184: GE | O184: Schweiz
B185: Ausserferrera | C185: 7444 | D185: Graubünden\Grischun | E185: GR | F185: Schweiz | K185: 1220 | L185: Les Avanchets | M185: Genève\Genf | N185: GE | O185: Schweiz
B186: Auswil | C186: 4944 | D186: Bern\Berne | E186: BE | F186: Schweiz | K186: 1222 | L186: Vésenaz | M186: Genève\Genf | N186: GE | O186: Schweiz
B187: Autafond | C187: 1782 | D187: Freiburg\Fribourg | E187: FR | F187: Schweiz | K187: 1223 | L187: Cologny | M187: Genève\Genf | N187: GE | O187: Schweiz
B188: Autavaux | C188: 1475 | D188: Freiburg\Fribourg | E188: FR | F188: Schweiz | K188: 1224 | L188: Chêne-Bougeries | M188: Genève\Genf | N188: GE | O188: Schweiz
B189: Autigny | C189: 1742 | D189: Freiburg\Fribourg | E189: FR | F189: Schweiz | K189: 1225 | L189: Chêne-Bourg | M189: Genève\Genf | N189: GE | O189: Schweiz
B190: Auvernier | C190: 2012 | D190: Neuchâtel\Neuenburg | E190: NE | F190: Schweiz | K190: 1226 | L190: Thônex | M190: Genève\Genf | N190: GE | O190: Schweiz
B191: Auw | C191: 5644 | D191: Aargau | E191: AG | F191: Schweiz | J191: 2 | K191: 1227 | L191: Les Acacias | M191: Genève\Genf | N191: GE | O191: Schweiz
B192: Avegno | C192: 6670 | D192: Ticino\Tessin | E192: TI | F192: Schweiz | K192: 1227 | L192: Carouge GE | M192: Genève\Genf | N192: GE | O192: Schweiz
B193: Aven | C193: 1976 | D193: Valais\Wallis | E193: VS | F193: Schweiz | K193: 1228 | L193: Plan-les-Ouates | M193: Genève\Genf | N193: GE | O193: Schweiz
B194: Avenches | C194: 1580 | D194: Vaud\Waadt | E194: VD | F194: Schweiz | K194: 1231 | L194: Conches | M194: Genève\Genf | N194: GE | O194: Schweiz
B195: Avry-Centre FR | C195: 1754 | D195: Freiburg\Fribourg | E195: FR | F195: Schweiz | K195: 1232 | L195: Confignon | M195: Genève\Genf | N195: GE | O195: Schweiz
B196: Avry-devant-Pont | C196: 1644 | D196: Freiburg\Fribourg | E196: FR | F196: Schweiz | K196: 1233 | L196: Bern\Berneex | M196: Genève\Genf | N196: GE | O196: Schweiz
B197: Avry-sur-Matran | C197: 1754 | D197: Freiburg\Fribourg | E197: FR | F197: Schweiz | K197: 1234 | L197: Vessy | M197: Genève\Genf | N197: GE | O197: Schweiz
B198: Avully | C198: 1237 | D198: Genève\Genf | E198: GE | F198: Schweiz | K198: 1236 | L198: Cartigny | M198: Genève\Genf | N198: GE | O198: Schweiz
B199: Axalp | C199: 3855 | D199: Bern\Berne | E199: BE | F199: Schweiz | K199: 1237 | L199: Avully | M199: Genève\Genf | N199: GE | O199: Schweiz
B200: Ayer | C200: 3961 | D200: Valais\Wallis | E200: VS | F200: Schweiz | K200: 1239 | L200: Collex | M200: Genève\Genf | N200: GE | O200: Schweiz
... 3919 more rows

Sheet Val
A1: Briefliche Anrede | B1: InitWerte | G1: Firmendaten | H1: Textbaustein Ausgaben (BauA) 8 | I1: Textbaustein Einahmen (BauE) 9 | J1: Textbaustein BauT | K1: Debitor | L1: Kreditor | M1: Beiträge | N1: KontoName | O1: Anfangsbestand | P1: IBAN | Q1: AppelTitel | S1: Firmenadresse | U1: Lieferbedingung | V1: Flags | W1: Versand | X1: Währung | Y1: MWS | Z1: ZahlungKondition
A2: Sehr geehrte Damen und Herren | B2: 4 | F2: 32 | G2: Carosserie Bühler | H2: Auftrag an | I2: Kunden Aufträge | J2: Kasse zu Bank | K2: Debi-Rechnung | L2: Kredi-Rechnung | M2: 100 | N2: Raiffeisen Fr | O2: 658.5 | P2: Bank1 | Q2: Probe | S2: 6340 | U2: 10 Tage Bestelleingang | V2: TRUE | W2: PTT | X2: CHF | Y2: 0 | Z2: 30 Tage Netto
A3: Sehr geehrte Frau | B3: A4 | F3: 1120 | G3: 01.04.2022-31.03.2023 | H3: Blumen | I3: Beratung | J3: Bank zu Kasse | K3: Mitgliederbeitrag | L3: Barzahlung | M3: 50 | N3: Kasse B | O3: 1070 | P3: Kasse Vereinskassier | Q3: Versammlung | S3: Baar | U3: 30 Tage Bestelleingang | V3: TRUE | W3: DHL | X3: EUR | Y3: 7.7 | Z3: 60 Tage Neto
A4: Sehr geehrte Mitarbeiterin und Mitarbeiter | B4: C | F4: 600 | G4: 2022 | H4: Büromaterial | I4: Trinkgeld | J4: Bank zu Bank | K4: Verkauf | L4: Kreditkarte | M4: 0 | N4: UBS Fr | O4: 87613.3 | P4: Swisscom | Q4: Sitzung | S4: Zug | U4: 45 Tage Bestelleingang | W4: HPD | X4: GBP | Y4: 2.5 | Z4: Bar 10% Rabatt
A5: Sehr geehrter Herr | B5: lemrum.3594 | F5: 8 | G5: Alfred Bühler | H5: Honorar | I5: Zinsen | J5: Bank zu Post | K5: Bareinnahme | L5: PostKarte | M5: 0 | N5: Post Fr | O5: 500 | P5: Kasse Fest | Q5: Treffen | S5: Schweiz | U5: solange Vorrart | W5: Kurrier | X5: USD | Y5: 3.7 | Z5: keine
A6: Guten Tag, Frau | B6: FALSE | F6: 5 | G6: Arnoldo | H6: Drucksachen | I6: Verkauf | J6: Post zu Bank | K6: Spende | L6: Spesen | M6: 0 | N6: DB € | O6: 450 | P6: Deutsche Bank | Q6: Kurs | U6: 10Tag nach Wareneingang | W6: kein | X6: CAD | Y6: 19
A7: Guten Tag, Herr | B7: 509 | F7: "C:\Users\mkuet\Desktop\\Save_\Save_EFaBu2022 | G7: Bettina | H7: Einkauszentrum | I7: Mieteinnahmen | J7: Post zu Kasse | K7: Ertrag | L7: Zinszahlung | M7: 0 | N7: Barclays $ | O7: 500 | P7: Barclays | Q7: Training | X7: AUD | Y7: 7
A8: Guten Tag, sehr geehrte Frau | B8: 104 | F8: "C:\Users\mkuet\Desktop\ | G8: Mani | H8: Firma | J8: Kasse zu Post | K8: Gage | M8: 20 | N8: WF £ | O8: 500 | P8: Wells Fargo | Q8: Fasnacht | X8: ISK | Y8: 16
A9: Hallo Frau | F9: E:\AA_Excel\AE_EFa_Bu\Bilder\ABKandelbauer.jpg | G9: Heidi | H9: Geschenke | J9: Kasse zu Kasse | K9: Zinseinahme | N9: ICBC ¥ | O9: 500 | P9: Ind. Comerz:Bank of China | X9: GIP | Y9: 5
A10: Hallo Herr | F10: C:\Users\mkuet\Contacts | G10: 01.04.2022 | H10: Lohn Angestelte | M10: Startseite
A11: Liebe Frau | F11: E:\AA_Excel\AE_EFa_Bu\Bedienungsanleitung EFaBu.pdf | G11: 31.03.2023 | H11: Medien | M11: Journal
A12: Liebe Kolleginnen und Kollegen | F12: \Save_EFaBu2021 | G12: 2022-04-01 | H12: Mobiliar
A13: Liebe Kundin | F13: 40 | H13: Shop | M13: Anlass
A14: Lieber Kunde | H14: Spesen | M14: 80
A15: Liebe Kunden | H15: Transport | M15: Vereinsreise 2021
A16: Frau | H16: Verpflegung
A17: Herr | H17: Versicherungen
H18: Wareneinkauf
H19: Werbegeschenke
K24: Buchtext E 11 | L24: Buchtext A 12 | R24: 18 | S24: 19 | T24: 20 | AA24: 27 | AB24: 28 | AC24: 29 | AD24: 30

Sheet Color (hidden)
A1: Farbname | B1: FarbIdx | C1: FarbHex (BGR) | D1: FarbRGB | E1: FarbeLong | J1: Testfarbe | L1: 13395456 | M1: Dodgerblue
A2: White | B2: 2 | C2: &HFFFFFF | D2: RGB(255, 255, 255) | E2: 16777215
A3: Whitesmoke | B3: 2 | C3: &HF5F5F5 | D3: RGB(245,245,245) | E3: 16119285
A4: Gainsboro | B4: 15 | C4: &HDCDCDC | D4: RGB(220,220,229) | E4: 14474460
A5: Silver | B5: 15 | C5: &HC0C0C0 | D5: RGB(192, 192, 192) | E5: 12632256
A6: Almond | B6: 19 | C6: &HEFDECD | D6: RGB(239,222,205) | E6: 13491951
A7: Yellow | B7: 6 | C7: &H00FFFF | D7: RGB(255,255,000) | E7: 65535
A8: Ivory | B8: 2 | C8: &HE0FFFF | D8: RGB(255, 255, 240) | E8: 15794175
A9: Cornsilk | B9: 19 | C9: &HDCF8FF | D9: RGB(255,248,220) | E9: 15071487
A10: Khaki | B10: 36 | C10: &H8CE6F0 | D10: RGB(240,230,140) | E10: 9234160
A11: Coldenrod | B11: 36 | C11: &HAAE8EE | D11: RGB(238,232,107) | E11: 7071982
A12: Bisque | B12: 19 | C12: &HC4E4FF | D12: RGB(255, 228, 196) | E12: 12903679
A13: DarkGreen | B13: 51 | C13: &H003300 | D13: RGB(0.51.0) | E13: 13056 | F13: Farbe Budget Haupttitel Einnahmen
A14: Green | B14: 10 | C14: &H008000 | D14: RGB(0.255,00) | E14: 32768 | F14: Farbe Budget Untertitel Einnahmen
A15: Gold | B15: 44 | C15: &H00D7FF | D15: RGB(255,215,000) | E15: 55295
A16: Bright Green | B16: 4 | C16: &H00FF00 | D16: RGB(000,255,000) | E16: 65280
A17: Chartreuse | B17: 43 | C17: &H00FF7F | D17: RGB(127,255,0 | E17: 65407
A18: Greenyellow | B18: 43 | C18: &H2FFFAD | D18: RGB(173,255,47) | E18: 3145645
A19: Light Green | B19: 48 | C19: &H33FF99 | D19: RGB(144,238,144) | E19: 9498256
A20: Springgreen | B20: 4 | C20: &H7FFF00 | D20: RGB(0, 255, 127) | E20: 8388352
A21: LightSeagreen | B21: 35 | C21: &HD3FF85 | D21: RGB(133, 255, 211) | E21: 13893509
A22: Pale Green | B22: 48 | C22: &H98FB98 | D22: RGB(152,251,152) | E22: 10025880
A23: Paleturqoise | B23: 20 | C23: &HEEEEAF | D23: RGB(175,238,238) | E23: 15658671
A24: Aquamarin | B24: 35 | C24: &HD4FF7F | D24: RGB(127, 255, 212) | E24: 13959039
A25: Light Green | B25: 35 | C25: &HCCFFCC | D25: RGB(204,255,204 | E25: 13434828 | F25: Farbe Budgetposition Einnahmen
A26: Blue | B26: 5 | C26: &HFF0000 | D26: RGB(0,0255 | E26: 16711680
A27: Powderblue | B27: 37 | C27: &HE6E0B0 | D27: RGB(176,224,230) | E27: 15130800
A28: Light Blue | B28: 37 | C28: &HEED7BD | D28: RGB(173,216,230) | E28: 15128749
A29: SteelBlue | B29: 15 | C29: &HFFCCCC | D29: RGB(176, 196, 222) | E29: 14599344
A30: Pale Blue | B30: 37 | C30: &HFFCC99 | D30: RGB(153, 204, 255) | E30: 16764057
A31: LightSkyblue | B31: 37 | C31: &HFF9999 | D31: RGB(135, 206, 250) | E31: 16436871
A32: Control | B32: 23 | C32: &HD77800 | D32: RGB(000,120,215) | E32: 14120960
A33: Dodgerblue | B33: 41 | C33: &HCC6600 | D33: RGB(030,144,255) | E33: 16748574
A34: Cornflower | B34: 17 | C34: &HED9564 | D34: RGB(100,149,237) | E34: 15570276
A35: Royalblue | B35: 41 | C35: &HE16841 | D35: RGB(65,105,225 | E35: 14772545
A36: Bronce | B36: 15 | C36: &H66D9FF | D36: RGB(255,217,102) | E36: 13082801
A37: Lavender | B37: 2 | C37: &HFF99CC | D37: RBG(230, 230, 250) | E37: 16443110
A38: Cyan | B38: 8 | C38: &HFFFF00 | D38: RGB(000, 255, 255) | E38: 16776960
A39: Light Cyan | B39: 20 | C39: &HFFFFCC | D39: RGB(204, 255, 255) | E39: 16777164
A40: Aqua | B40: 42 | C40: &HCCCC33 | D40: RGB(51,204,204) | E40: 13421619
A41: Teal | B41: 14 | C41: &H808000 | D41: RGB(0,128,128) | E41: 8421376
A42: Tan | B42: 15 | C42: &H8CB4D2 | D42: RGB(210, 180, 140) | E42: 9221330
A43: Red | B43: 3 | C43: &H0000FF | D43: RGB(255,0,0) | E43: 255
A44: Tomato | B44: 46 | C44: &H4763FF | D44: RGB(255,99,71) | E44: 4676351
A45: DarkRed | B45: 9 | C45: &H000080 | D45: RGB(128,0,0) | E45: 128 | F45: Farbe Budget Haupttitel Ausgaben
A46: Purpur | B46: 3 | C46: &H3C14DC | D46: RGB(220,20,60 | E46: 3937500
A47: Mangenta | B47: 7 | C47: &HFF00FF | D47: RGB(255,000 255) | E47: 16711935
A48: Hotpink | B48: 38 | C48: &HB469FF | D48: RGB(255,105,180 | E48: 11823615
A49: Rose | B49: 38 | C49: &HCC99FF | D49: RGB(255, 153, 204) | E49: 13408767
A50: LightPink | B50: 38 | C50: &HC1B6FF | D50: RGB(255,182,193) | E50: 12695295
A51: MistyRose | B51: 19 | C51: &HE1E4FF | D51: RGB(255,228,225) | E51: 14804223
A52: Orange | B52: 46 | C52: &H0066FF | D52: RGB(255, 102,0) | E52: 26367 | F52: Farbe Budget Untertitel Ausgaben
A53: Coral | B53: 22 | C53: &H7AA0FF | D53: RGB(255, 127, 80) | E53: 5275647
A54: Peru | B54: 45 | C54: &H0099FF | D54: RGB(255,153,0) | E54: 39423
A55: LightSalmon | B55: 22 | C55: &HA7A9FF | D55: RGB(255,160,122) | E55: 8036607
A56: Tan | B56: 40 | C56: &H99CCFF | D56: RGB(255,204,153) | E56: 10079487 | F56: Farbe BudgetPosition Ausgaben
A57: Orchid | B57: 38 | C57: &HD670DA | D57: RGB(218,112,214) | E57: 14053594
A58: Plum | B58: 38 | C58: &HDDA0DD | D58: RGB(221,160,221) | E58: 14524637
A59: Thistle | B59: 15 | C59: &HD8BFD8 | D59: RGB(216,191,216) | E59: 14204888
A60: Rot Akz 2 | B60: 15 | C60: &HB8B8E6 | D60: RGB(230,184,184) | E60: 12105958
A61: NavajoWhite | B61: 40 | C61: &HADDEFF | D61: RGB(255,222,173) | E61: 11394815
A62: Wheat | B62: 40 | C62: &HB3DEF5 | D62: RGB(245,222,179) | E62: 11788021
A63: Menue | B63: 24 | D63: RGB(197,217,241) | E63: 15849925
B64: -4142 | E64: 16777215
